[Event "Titled Tuesday Blitz December 20 Early 2022"]
[White "Misanik, Peter"]
[Black "Aygehovit1992"]
[WhiteFideId "14921421"]
[WhiteElo "1785"]
[BlackElo "2682"]
[Result "1-0"]
[Round "06"]
[TimeControl "180+2"]
[Date "2022.12.20"]
[WhiteClock "0:00:16"]
[BlackClock "0:00:02"]

1. d4 {[%clk 0:03:00]}  g6 {[%clk 0:03:00]} 2. e4 {[%clk 0:03:00]}  Bg7 {[%clk 0:03:00]} 3. Nc3 {[%clk 0:03:01]}  d6 {[%clk 0:03:00]} 4. f4 {[%clk 0:03:01]}  Nf6 {[%clk 0:02:59]} 5. Nf3 {[%clk 0:03:01]}  O-O {[%clk 0:02:59]} 6. Bd3 {[%clk 0:03:02]}  Nc6 {[%clk 0:02:57]} 7. O-O {[%clk 0:03:02]}  e5 {[%clk 0:02:57]} 8. d5 {[%clk 0:03:02]}  Nd4 {[%clk 0:02:33]} 9. f5 {[%clk 0:03:02]}  c6 {[%clk 0:02:26]} 10. Bg5 {[%clk 0:02:55]}  Qb6 {[%clk 0:02:16]} 11. Kh1 {[%clk 0:02:54]}  Qxb2 {[%clk 0:02:12]} 12. Na4 {[%clk 0:02:29]}  Qa3 {[%clk 0:01:51]} 13. c3 {[%clk 0:02:10]}  Nb5 {[%clk 0:01:43]} 14. Bc1 {[%clk 0:02:03]}  Nxc3 {[%clk 0:01:43]} 15. Bxa3 {[%clk 0:02:03]}  Nxd1 {[%clk 0:01:43]} 16. Raxd1 {[%clk 0:01:31]}  cxd5 {[%clk 0:01:43]} 17. Nc3 {[%clk 0:01:31]}  dxe4 {[%clk 0:01:40]} 18. Nxe4 {[%clk 0:01:29]}  Nxe4 {[%clk 0:01:40]} 19. Bxe4 {[%clk 0:01:30]}  gxf5 {[%clk 0:01:39]} 20. Bd5 {[%clk 0:01:28]}  e4 {[%clk 0:01:30]} 21. Nh4 {[%clk 0:01:27]}  e3 {[%clk 0:01:19]} 22. Rde1 {[%clk 0:01:22]}  Bd4 {[%clk 0:01:03]} 23. Nxf5 {[%clk 0:01:20]}  Bxf5 {[%clk 0:01:03]} 24. Rxf5 {[%clk 0:01:21]}  Rad8 {[%clk 0:00:47]} 25. Rf4 {[%clk 0:01:16]}  Be5 {[%clk 0:00:27]} 26. Rg4+ {[%clk 0:01:15]}  Kh8 {[%clk 0:00:27]} 27. Rxe3 {[%clk 0:01:15]}  f5 {[%clk 0:00:28]} 28. Rc4 {[%clk 0:01:12]}  b5 {[%clk 0:00:26]} 29. Rc6 {[%clk 0:01:11]}  a5 {[%clk 0:00:24]} 30. g3 {[%clk 0:00:44]}  b4 {[%clk 0:00:23]} 31. Bc1 {[%clk 0:00:44]}  f4 {[%clk 0:00:17]} 32. Rd3 {[%clk 0:00:25]}  fxg3 {[%clk 0:00:12]} 33. hxg3 {[%clk 0:00:26]}  Rf1+ {[%clk 0:00:10]} 34. Kg2 {[%clk 0:00:25]}  Rdf8 {[%clk 0:00:11]} 35. Be3 {[%clk 0:00:25]}  Re1 {[%clk 0:00:07]} 36. Bh6 {[%clk 0:00:19]}  Rb8 {[%clk 0:00:03]} 37. Rc7 {[%clk 0:00:16]}  Re2+ {[%clk 0:00:03]} 38. Kh3 {[%clk 0:00:16]}  a4 {[%clk 0:00:02]} 39. Rf3 {[%clk 0:00:16]} 1-0


[Site "https://www.chess.com"]

[Event "Titled Tuesday Blitz December 20 Early 2022"]
[White "Nemegejas"]
[Black "tdf98pantani"]
[WhiteElo "2883"]
[BlackElo "2734"]
[Result "1-0"]
[Round "06"]
[TimeControl "180+2"]
[Date "2022.12.20"]
[WhiteClock "0:02:19"]
[BlackClock "0:00:33"]

1. Nf3 {[%clk 0:03:00]}  Nf6 {[%clk 0:02:58]} 2. b3 {[%clk 0:03:01]}  d5 {[%clk 0:02:54]} 3. Ba3 {[%clk 0:03:01]}  c6 {[%clk 0:02:53]} 4. e3 {[%clk 0:03:00]}  g6 {[%clk 0:02:53]} 5. c4 {[%clk 0:02:59]}  Bg7 {[%clk 0:02:53]} 6. Nc3 {[%clk 0:03:00]}  O-O {[%clk 0:02:50]} 7. d4 {[%clk 0:02:56]}  Bg4 {[%clk 0:02:49]} 8. Be2 {[%clk 0:02:55]}  Qa5 {[%clk 0:02:46]} 9. Qc1 {[%clk 0:02:53]}  Ne4 {[%clk 0:02:43]} 10. Bb2 {[%clk 0:02:54]}  c5 {[%clk 0:02:31]} 11. O-O {[%clk 0:02:51]}  Bxf3 {[%clk 0:01:52]} 12. Bxf3 {[%clk 0:02:49]}  cxd4 {[%clk 0:01:52]} 13. Nxd5 {[%clk 0:02:48]}  Nd2 {[%clk 0:01:35]} 14. Nxe7+ {[%clk 0:02:47]}  Kh8 {[%clk 0:01:35]} 15. Bxb7 {[%clk 0:02:48]}  Nxf1 {[%clk 0:01:33]} 16. Bxa8 {[%clk 0:02:43]}  Nxh2 {[%clk 0:01:21]} 17. Kxh2 {[%clk 0:02:37]}  Qc7+ {[%clk 0:00:55]} 18. Kg1 {[%clk 0:02:36]}  Qxe7 {[%clk 0:00:51]} 19. Ba3 {[%clk 0:02:31]}  Qh4 {[%clk 0:00:38]} 20. Bxf8 {[%clk 0:02:29]}  Bxf8 {[%clk 0:00:39]} 21. exd4 {[%clk 0:02:28]}  Qxd4 {[%clk 0:00:35]} 22. Qd1 {[%clk 0:02:25]}  Qf6 {[%clk 0:00:34]} 23. Rc1 {[%clk 0:02:20]}  Bc5 {[%clk 0:00:34]} 24. Qf3 {[%clk 0:02:20]}  Qb2 {[%clk 0:00:33]} 25. Rd1 {[%clk 0:02:19]} 1-0


[Site "https://www.chess.com"]

[Event "Titled Tuesday Blitz December 20 Early 2022"]
[White "Oleksandr_Bortnyk"]
[Black "Pitcher, John"]
[BlackFideId "411485"]
[WhiteElo "2984"]
[BlackElo "2210"]
[Result "1/2-1/2"]
[Round "06"]
[TimeControl "180+2"]
[Date "2022.12.20"]
[WhiteClock "0:00:03"]
[BlackClock "0:00:03"]

1. d4 {[%clk 0:03:00]}  Nf6 {[%clk 0:02:55]} 2. Nc3 {[%clk 0:03:01]}  d5 {[%clk 0:02:55]} 3. Bf4 {[%clk 0:03:02]}  g6 {[%clk 0:02:55]} 4. e3 {[%clk 0:03:02]}  Bg7 {[%clk 0:02:56]} 5. h4 {[%clk 0:03:03]}  h6 {[%clk 0:02:56]} 6. Nb5 {[%clk 0:03:03]}  Na6 {[%clk 0:02:55]} 7. Nf3 {[%clk 0:03:04]}  O-O {[%clk 0:02:56]} 8. Nc3 {[%clk 0:03:05]}  b6 {[%clk 0:02:53]} 9. Ne5 {[%clk 0:03:04]}  Bb7 {[%clk 0:02:50]} 10. g4 {[%clk 0:03:04]}  Nd7 {[%clk 0:02:48]} 11. Bxa6 {[%clk 0:03:03]}  Bxa6 {[%clk 0:02:48]} 12. Nc6 {[%clk 0:03:04]}  Qe8 {[%clk 0:02:48]} 13. Nxd5 {[%clk 0:03:05]}  Kh7 {[%clk 0:02:36]} 14. Nxc7 {[%clk 0:03:04]}  Qc8 {[%clk 0:02:36]} 15. Nxe7 {[%clk 0:03:05]}  Qb7 {[%clk 0:02:36]} 16. d5 {[%clk 0:03:03]}  Rad8 {[%clk 0:02:28]} 17. Nxa6 {[%clk 0:03:02]}  Qxa6 {[%clk 0:02:27]} 18. c3 {[%clk 0:03:02]}  Rfe8 {[%clk 0:02:17]} 19. Nc6 {[%clk 0:03:02]}  Rc8 {[%clk 0:02:16]} 20. Qe2 {[%clk 0:03:02]}  Qa4 {[%clk 0:02:11]} 21. f3 {[%clk 0:02:16]}  Nf6 {[%clk 0:02:07]} 22. Rd1 {[%clk 0:02:09]}  Nxd5 {[%clk 0:02:05]} 23. Rxd5 {[%clk 0:02:02]}  Rxc6 {[%clk 0:01:53]} 24. Kf2 {[%clk 0:01:48]}  Rce6 {[%clk 0:01:45]} 25. e4 {[%clk 0:01:35]}  Qxa2 {[%clk 0:01:34]} 26. Qd2 {[%clk 0:01:34]}  Qc4 {[%clk 0:01:27]} 27. Rd1 {[%clk 0:01:34]}  a5 {[%clk 0:00:55]} 28. Qd3 {[%clk 0:01:27]}  Qa2 {[%clk 0:00:49]} 29. Rd2 {[%clk 0:01:27]}  Qa1 {[%clk 0:00:49]} 30. Kg2 {[%clk 0:01:23]}  a4 {[%clk 0:00:44]} 31. Rd7 {[%clk 0:01:10]}  R8e7 {[%clk 0:00:43]} 32. Rxe7 {[%clk 0:01:08]}  Rxe7 {[%clk 0:00:43]} 33. h5 {[%clk 0:01:09]}  a3 {[%clk 0:00:41]} 34. bxa3 {[%clk 0:01:02]}  Bxc3 {[%clk 0:00:19]} 35. hxg6+ {[%clk 0:00:57]}  fxg6 {[%clk 0:00:18]} 36. Rc2 {[%clk 0:00:48]}  Bd4 {[%clk 0:00:17]} 37. Rc1 {[%clk 0:00:33]}  Qb2+ {[%clk 0:00:15]} 38. Rc2 {[%clk 0:00:32]}  Qa1 {[%clk 0:00:15]} 39. Rc1 {[%clk 0:00:33]}  Qb2+ {[%clk 0:00:16]} 40. Qd2 {[%clk 0:00:34]}  Qxd2+ {[%clk 0:00:14]} 41. Bxd2 {[%clk 0:00:35]}  Bb2 {[%clk 0:00:13]} 42. Rh1 {[%clk 0:00:28]}  Bxa3 {[%clk 0:00:12]} 43. Bxh6 {[%clk 0:00:29]}  Kg8 {[%clk 0:00:12]} 44. Be3 {[%clk 0:00:28]}  b5 {[%clk 0:00:11]} 45. Rb1 {[%clk 0:00:27]}  b4 {[%clk 0:00:11]} 46. Kg3 {[%clk 0:00:22]}  Rb7 {[%clk 0:00:10]} 47. Rb3 {[%clk 0:00:22]}  Kf7 {[%clk 0:00:10]} 48. f4 {[%clk 0:00:22]}  Ke6 {[%clk 0:00:10]} 49. Kf3 {[%clk 0:00:23]}  Rc7 {[%clk 0:00:10]} 50. Bd4 {[%clk 0:00:23]}  Rc4 {[%clk 0:00:10]} 51. Ke3 {[%clk 0:00:23]}  Rc2 {[%clk 0:00:08]} 52. f5+ {[%clk 0:00:21]}  gxf5 {[%clk 0:00:08]} 53. gxf5+ {[%clk 0:00:22]}  Kd6 {[%clk 0:00:09]} 54. Kd3 {[%clk 0:00:21]}  Rc1 {[%clk 0:00:08]} 55. Be3 {[%clk 0:00:17]}  Rc8 {[%clk 0:00:01]} 56. Kd4 {[%clk 0:00:16]}  Rd8 {[%clk 0:00:01]} 57. Bf4+ {[%clk 0:00:11]}  Kc6+ {[%clk 0:00:01]} 58. Kc4 {[%clk 0:00:11]}  Rd1 {[%clk 0:00:01]} 59. e5 {[%clk 0:00:11]}  Rf1 {[%clk 0:00:01]} 60. Bg3 {[%clk 0:00:05]}  Rxf5 {[%clk 0:00:02]} 61. e6 {[%clk 0:00:04]}  Rf6 {[%clk 0:00:02]} 62. Re3 {[%clk 0:00:03]}  b3 {[%clk 0:00:01]} 63. Kxb3 {[%clk 0:00:04]}  Bc5 {[%clk 0:00:01]} 64. Rc3 {[%clk 0:00:02]}  Kd5 {[%clk 0:00:02]} 65. Rxc5+ {[%clk 0:00:01]}  Kxc5 {[%clk 0:00:02]} 66. e7 {[%clk 0:00:02]}  Re6 {[%clk 0:00:02]} 67. Bh4 {[%clk 0:00:02]}  Kd6 {[%clk 0:00:02]} 68. Kc4 {[%clk 0:00:02]}  Rxe7 {[%clk 0:00:03]} 69. Bxe7+ {[%clk 0:00:03]} 1/2-1/2


[Site "https://www.chess.com"]

[Event "Titled Tuesday Blitz December 20 Early 2022"]
[White "OparinGrigoriy"]
[Black "severomorskij"]
[WhiteElo "3013"]
[BlackElo "2844"]
[Result "1-0"]
[Round "06"]
[TimeControl "180+2"]
[Date "2022.12.20"]
[WhiteClock "0:01:15"]
[BlackClock "0:00:04"]

1. Nf3 {[%clk 0:03:00]}  d5 {[%clk 0:02:58]} 2. g3 {[%clk 0:03:01]}  Nc6 {[%clk 0:02:57]} 3. d4 {[%clk 0:03:01]}  Bf5 {[%clk 0:02:57]} 4. Bg2 {[%clk 0:03:01]}  Nb4 {[%clk 0:02:57]} 5. Na3 {[%clk 0:03:00]}  e6 {[%clk 0:02:55]} 6. O-O {[%clk 0:03:00]}  Be7 {[%clk 0:02:54]} 7. c3 {[%clk 0:02:56]}  Nc6 {[%clk 0:02:53]} 8. c4 {[%clk 0:02:56]}  Nf6 {[%clk 0:02:51]} 9. Bg5 {[%clk 0:02:50]}  Ne4 {[%clk 0:02:39]} 10. Bxe7 {[%clk 0:02:47]}  Nxe7 {[%clk 0:02:40]} 11. Rc1 {[%clk 0:02:40]}  O-O {[%clk 0:02:31]} 12. Ne5 {[%clk 0:02:40]}  h6 {[%clk 0:02:19]} 13. e3 {[%clk 0:02:34]}  c6 {[%clk 0:02:16]} 14. Qe2 {[%clk 0:02:32]}  Bh7 {[%clk 0:02:09]} 15. Rfd1 {[%clk 0:02:31]}  a6 {[%clk 0:02:05]} 16. b4 {[%clk 0:02:23]}  f6 {[%clk 0:01:54]} 17. Nd3 {[%clk 0:02:23]}  Nf5 {[%clk 0:01:51]} 18. Nc5 {[%clk 0:02:17]}  Qe7 {[%clk 0:01:38]} 19. Nxe4 {[%clk 0:02:11]}  dxe4 {[%clk 0:01:38]} 20. c5 {[%clk 0:02:12]}  Kh8 {[%clk 0:01:30]} 21. Nc4 {[%clk 0:02:07]}  Qf7 {[%clk 0:01:12]} 22. Qc2 {[%clk 0:01:57]}  e5 {[%clk 0:01:04]} 23. dxe5 {[%clk 0:01:50]}  fxe5 {[%clk 0:01:04]} 24. Nxe5 {[%clk 0:01:51]}  Qe6 {[%clk 0:00:55]} 25. Nc4 {[%clk 0:01:48]}  Rad8 {[%clk 0:00:54]} 26. Rxd8 {[%clk 0:01:46]}  Rxd8 {[%clk 0:00:54]} 27. Qxe4 {[%clk 0:01:44]}  Qxe4 {[%clk 0:00:51]} 28. Bxe4 {[%clk 0:01:44]}  Nxg3 {[%clk 0:00:51]} 29. hxg3 {[%clk 0:01:45]}  Bxe4 {[%clk 0:00:51]} 30. Nd6 {[%clk 0:01:45]}  Bd5 {[%clk 0:00:48]} 31. a3 {[%clk 0:01:43]}  Rd7 {[%clk 0:00:40]} 32. e4 {[%clk 0:01:43]}  Be6 {[%clk 0:00:40]} 33. f4 {[%clk 0:01:44]}  g6 {[%clk 0:00:40]} 34. Kf2 {[%clk 0:01:44]}  Kg7 {[%clk 0:00:39]} 35. Ke3 {[%clk 0:01:45]}  h5 {[%clk 0:00:32]} 36. f5 {[%clk 0:01:37]}  gxf5 {[%clk 0:00:32]} 37. exf5 {[%clk 0:01:38]}  Bd5 {[%clk 0:00:29]} 38. Kf4 {[%clk 0:01:36]}  Re7 {[%clk 0:00:22]} 39. Kg5 {[%clk 0:01:21]}  Re3 {[%clk 0:00:18]} 40. f6+ {[%clk 0:01:21]}  Kf8 {[%clk 0:00:17]} 41. Kxh5 {[%clk 0:01:19]}  Rxg3 {[%clk 0:00:16]} 42. Re1 {[%clk 0:01:18]}  Bf7+ {[%clk 0:00:16]} 43. Kh4 {[%clk 0:01:17]}  Rf3 {[%clk 0:00:12]} 44. Kg5 {[%clk 0:01:15]}  Rg3+ {[%clk 0:00:09]} 45. Kf4 {[%clk 0:01:15]}  Rxa3 {[%clk 0:00:08]} 46. Re7 {[%clk 0:01:15]}  Bg6 {[%clk 0:00:04]} 47. Rxb7 {[%clk 0:01:15]} 1-0


[Site "https://www.chess.com"]

[Event "Titled Tuesday Blitz December 20 Early 2022"]
[White "Patterson, Fheopatrick"]
[Black "Pietrek, Gerhard"]
[WhiteFideId "30939364"]
[BlackFideId "24631698"]
[WhiteElo "1497"]
[BlackElo "1596"]
[Result "1-0"]
[Round "06"]
[TimeControl "180+2"]
[Date "2022.12.20"]
[WhiteClock "0:00:41"]
[BlackClock "0:00:18"]

1. d4 {[%clk 0:03:00]}  Nf6 {[%clk 0:02:58]} 2. c4 {[%clk 0:03:00]}  c5 {[%clk 0:02:58]} 3. d5 {[%clk 0:03:00]}  d6 {[%clk 0:02:58]} 4. Nc3 {[%clk 0:02:59]}  g6 {[%clk 0:02:59]} 5. e4 {[%clk 0:03:00]}  Bg7 {[%clk 0:03:00]} 6. h3 {[%clk 0:03:00]}  O-O {[%clk 0:03:01]} 7. Bd3 {[%clk 0:03:00]}  e6 {[%clk 0:03:01]} 8. Nge2 {[%clk 0:03:01]}  a6 {[%clk 0:03:02]} 9. O-O {[%clk 0:03:01]}  exd5 {[%clk 0:03:01]} 10. exd5 {[%clk 0:03:01]}  b5 {[%clk 0:02:59]} 11. cxb5 {[%clk 0:03:01]}  axb5 {[%clk 0:02:59]} 12. Bxb5 {[%clk 0:03:01]}  Ba6 {[%clk 0:02:58]} 13. a4 {[%clk 0:03:00]}  Bxb5 {[%clk 0:02:44]} 14. Nxb5 {[%clk 0:03:01]}  Ne8 {[%clk 0:02:43]} 15. Nec3 {[%clk 0:02:55]}  Nd7 {[%clk 0:02:42]} 16. Rb1 {[%clk 0:02:52]}  Ne5 {[%clk 0:02:31]} 17. Bf4 {[%clk 0:02:49]}  Nc7 {[%clk 0:02:28]} 18. Re1 {[%clk 0:02:47]}  f5 {[%clk 0:02:17]} 19. b3 {[%clk 0:02:15]}  Na6 {[%clk 0:02:16]} 20. Qe2 {[%clk 0:02:10]}  Nb4 {[%clk 0:02:14]} 21. Rbd1 {[%clk 0:01:59]}  Qd7 {[%clk 0:02:13]} 22. Nxd6 {[%clk 0:01:58]}  Nf7 {[%clk 0:01:19]} 23. Ncb5 {[%clk 0:01:49]}  Nxd6 {[%clk 0:01:05]} 24. Bxd6 {[%clk 0:01:37]}  Rfe8 {[%clk 0:01:04]} 25. Qc4 {[%clk 0:01:37]}  h5 {[%clk 0:00:53]} 26. Rxe8+ {[%clk 0:01:26]}  Rxe8 {[%clk 0:00:52]} 27. Bxc5 {[%clk 0:01:26]}  Na6 {[%clk 0:00:47]} 28. d6+ {[%clk 0:01:24]}  Kh7 {[%clk 0:00:46]} 29. Bd4 {[%clk 0:01:20]}  Bh6 {[%clk 0:00:43]} 30. Bc3 {[%clk 0:01:12]}  Rc8 {[%clk 0:00:37]} 31. Qe2 {[%clk 0:01:07]}  Re8 {[%clk 0:00:25]} 32. Qxe8 {[%clk 0:01:02]}  Qxe8 {[%clk 0:00:24]} 33. d7 {[%clk 0:01:02]}  Qd8 {[%clk 0:00:22]} 34. Bf6 {[%clk 0:00:55]}  Qxf6 {[%clk 0:00:22]} 35. d8=Q {[%clk 0:00:55]}  Qb2 {[%clk 0:00:21]} 36. Qd7+ {[%clk 0:00:47]}  Bg7 {[%clk 0:00:21]} 37. Nd6 {[%clk 0:00:42]}  Qxb3 {[%clk 0:00:18]} 38. Ne8 {[%clk 0:00:41]} 1-0


[Site "https://www.chess.com"]

[Event "Titled Tuesday Blitz December 20 Early 2022"]
[White "Pranav, V"]
[Black "Firouzja, Alireza"]
[WhiteFideId "25060783"]
[BlackFideId "12573981"]
[WhiteElo "2597"]
[BlackElo "2785"]
[Result "0-1"]
[Round "06"]
[TimeControl "180+2"]
[Date "2022.12.20"]
[WhiteClock "0:00:04"]
[BlackClock "0:00:54"]

1. e4 {[%clk 0:03:00]}  g6 {[%clk 0:02:46]} 2. d4 {[%clk 0:02:59]}  Bg7 {[%clk 0:02:46]} 3. Nc3 {[%clk 0:02:59]}  c6 {[%clk 0:02:45]} 4. Nf3 {[%clk 0:02:58]}  d6 {[%clk 0:02:42]} 5. h3 {[%clk 0:02:54]}  Nf6 {[%clk 0:02:42]} 6. Bd3 {[%clk 0:02:54]}  O-O {[%clk 0:02:42]} 7. O-O {[%clk 0:02:54]}  Qc7 {[%clk 0:02:43]} 8. Bf4 {[%clk 0:02:43]}  Nh5 {[%clk 0:02:42]} 9. Be3 {[%clk 0:02:42]}  e5 {[%clk 0:02:42]} 10. dxe5 {[%clk 0:02:39]}  dxe5 {[%clk 0:02:42]} 11. Qc1 {[%clk 0:02:38]}  Nd7 {[%clk 0:02:37]} 12. Ne2 {[%clk 0:02:35]}  Re8 {[%clk 0:02:33]} 13. Bh6 {[%clk 0:02:34]}  Nf8 {[%clk 0:02:33]} 14. Rd1 {[%clk 0:02:27]}  Be6 {[%clk 0:02:24]} 15. Bxg7 {[%clk 0:02:22]}  Kxg7 {[%clk 0:02:22]} 16. Qg5 {[%clk 0:02:22]}  f6 {[%clk 0:02:19]} 17. Qe3 {[%clk 0:02:18]}  Bf7 {[%clk 0:02:13]} 18. g3 {[%clk 0:02:10]}  Qb6 {[%clk 0:01:58]} 19. g4 {[%clk 0:01:54]}  Nf4 {[%clk 0:01:47]} 20. Nxf4 {[%clk 0:01:53]}  Qxe3 {[%clk 0:01:39]} 21. fxe3 {[%clk 0:01:52]}  exf4 {[%clk 0:01:39]} 22. exf4 {[%clk 0:01:53]}  Ne6 {[%clk 0:01:40]} 23. f5 {[%clk 0:01:51]}  Nc5 {[%clk 0:01:40]} 24. Re1 {[%clk 0:01:44]}  Rad8 {[%clk 0:01:39]} 25. Rad1 {[%clk 0:01:43]}  Bxa2 {[%clk 0:01:36]} 26. fxg6 {[%clk 0:01:17]}  hxg6 {[%clk 0:01:34]} 27. e5 {[%clk 0:01:05]}  Nxd3 {[%clk 0:01:30]} 28. exf6+ {[%clk 0:01:04]}  Kxf6 {[%clk 0:01:29]} 29. Rxe8 {[%clk 0:01:00]}  Rxe8 {[%clk 0:01:30]} 30. Rxd3 {[%clk 0:01:00]}  Bd5 {[%clk 0:01:25]} 31. Kf2 {[%clk 0:01:00]}  a5 {[%clk 0:01:25]} 32. Ra3 {[%clk 0:00:59]}  b6 {[%clk 0:01:24]} 33. h4 {[%clk 0:00:58]}  Re4 {[%clk 0:01:24]} 34. g5+ {[%clk 0:00:48]}  Kf5 {[%clk 0:01:23]} 35. Kg3 {[%clk 0:00:30]}  Rg4+ {[%clk 0:01:12]} 36. Kh3 {[%clk 0:00:30]}  Rf4 {[%clk 0:01:12]} 37. Kg3 {[%clk 0:00:29]}  Rxf3+ {[%clk 0:01:12]} 38. Rxf3+ {[%clk 0:00:28]}  Bxf3 {[%clk 0:01:13]} 39. Kxf3 {[%clk 0:00:28]}  b5 {[%clk 0:01:12]} 40. c3 {[%clk 0:00:23]}  a4 {[%clk 0:01:12]} 41. Ke3 {[%clk 0:00:09]}  c5 {[%clk 0:00:56]} 42. Kd3 {[%clk 0:00:09]}  Kg4 {[%clk 0:00:54]} 43. Ke4 {[%clk 0:00:06]}  Kxh4 {[%clk 0:00:53]} 44. Kd5 {[%clk 0:00:03]}  b4 {[%clk 0:00:54]} 45. Kc4 {[%clk 0:00:03]}  a3 {[%clk 0:00:51]} 46. bxa3 {[%clk 0:00:01]}  bxa3 {[%clk 0:00:52]} 47. Kb3 {[%clk 0:00:02]}  Kxg5 {[%clk 0:00:52]} 48. Kxa3 {[%clk 0:00:02]}  Kf4 {[%clk 0:00:53]} 49. Kb3 {[%clk 0:00:03]}  g5 {[%clk 0:00:54]} 50. Kc4 {[%clk 0:00:04]}  g4 {[%clk 0:00:54]} 0-1


[Site "https://www.chess.com"]

[Event "Titled Tuesday Blitz December 20 Early 2022"]
[White "Prasad, M.V.S"]
[Black "The_Machine04"]
[WhiteFideId "5018790"]
[WhiteElo "1945"]
[BlackElo "2652"]
[Result "1-0"]
[Round "06"]
[TimeControl "180+2"]
[Date "2022.12.20"]
[WhiteClock "0:00:18"]
[BlackClock "0:00:01"]

1. e4 {[%clk 0:03:00]}  d6 {[%clk 0:02:59]} 2. d4 {[%clk 0:03:00]}  Nf6 {[%clk 0:03:00]} 3. Nc3 {[%clk 0:03:01]}  e5 {[%clk 0:03:00]} 4. Nf3 {[%clk 0:03:00]}  Nbd7 {[%clk 0:03:00]} 5. Bc4 {[%clk 0:02:59]}  Be7 {[%clk 0:03:00]} 6. g4 {[%clk 0:02:58]}  Nb6 {[%clk 0:02:59]} 7. dxe5 {[%clk 0:02:53]}  Nxc4 {[%clk 0:02:57]} 8. exf6 {[%clk 0:02:53]}  Bxf6 {[%clk 0:02:58]} 9. g5 {[%clk 0:02:49]}  Bxc3+ {[%clk 0:02:58]} 10. bxc3 {[%clk 0:02:50]}  O-O {[%clk 0:02:54]} 11. Qd4 {[%clk 0:02:47]}  Bg4 {[%clk 0:02:30]} 12. Nh4 {[%clk 0:02:38]}  d5 {[%clk 0:01:42]} 13. h3 {[%clk 0:02:30]}  Re8 {[%clk 0:01:36]} 14. f3 {[%clk 0:02:15]}  Bxf3 {[%clk 0:01:33]} 15. O-O {[%clk 0:01:51]}  Rxe4 {[%clk 0:01:22]} 16. Qf2 {[%clk 0:01:49]}  Bh5 {[%clk 0:01:18]} 17. Nf5 {[%clk 0:01:41]}  Qd7 {[%clk 0:01:00]} 18. Ng3 {[%clk 0:01:15]}  Rh4 {[%clk 0:00:14]} 19. Nf5 {[%clk 0:00:55]}  Rxh3 {[%clk 0:00:11]} 20. Qd4 {[%clk 0:00:54]}  f6 {[%clk 0:00:05]} 21. gxf6 {[%clk 0:00:50]}  Rf8 {[%clk 0:00:05]} 22. Ne7+ {[%clk 0:00:34]}  Qxe7 {[%clk 0:00:04]} 23. fxe7 {[%clk 0:00:29]}  Rxf1+ {[%clk 0:00:05]} 24. Kxf1 {[%clk 0:00:27]}  c6 {[%clk 0:00:03]} 25. Kg2 {[%clk 0:00:20]}  Rf3 {[%clk 0:00:01]} 26. e8=R+ {[%clk 0:00:18]}  Bxe8 {[%clk 0:00:01]} 27. Kxf3 {[%clk 0:00:18]} 1-0


[Site "https://www.chess.com"]

[Event "Titled Tuesday Blitz December 20 Early 2022"]
[White "Rakesh, Kumar Jena"]
[Black "Gnechko_Ruslan"]
[WhiteFideId "5084822"]
[WhiteElo "2303"]
[BlackElo "2448"]
[Result "1-0"]
[Round "06"]
[TimeControl "180+2"]
[Date "2022.12.20"]
[WhiteClock "0:00:34"]
[BlackClock "0:00:01"]

1. Nf3 {[%clk 0:02:56]}  d5 {[%clk 0:02:58]} 2. b3 {[%clk 0:02:55]}  Nf6 {[%clk 0:02:57]} 3. Bb2 {[%clk 0:02:56]}  Bf5 {[%clk 0:02:55]} 4. e3 {[%clk 0:02:56]}  e6 {[%clk 0:02:54]} 5. Be2 {[%clk 0:02:55]}  h6 {[%clk 0:02:54]} 6. O-O {[%clk 0:02:56]}  Be7 {[%clk 0:02:53]} 7. d3 {[%clk 0:02:55]}  O-O {[%clk 0:02:52]} 8. Nbd2 {[%clk 0:02:56]}  c5 {[%clk 0:02:51]} 9. Ne5 {[%clk 0:02:56]}  Nbd7 {[%clk 0:02:39]} 10. f4 {[%clk 0:02:54]}  b5 {[%clk 0:02:38]} 11. Bf3 {[%clk 0:02:51]}  Rc8 {[%clk 0:02:36]} 12. e4 {[%clk 0:02:47]}  dxe4 {[%clk 0:02:35]} 13. Nxe4 {[%clk 0:02:46]}  Nd5 {[%clk 0:02:25]} 14. Ng3 {[%clk 0:02:38]}  Ne3 {[%clk 0:02:17]} 15. Qd2 {[%clk 0:02:27]}  Nxf1 {[%clk 0:02:16]} 16. Rxf1 {[%clk 0:02:26]}  Nxe5 {[%clk 0:02:13]} 17. fxe5 {[%clk 0:02:21]}  Bg6 {[%clk 0:02:11]} 18. Be4 {[%clk 0:02:13]}  Bg5 {[%clk 0:01:46]} 19. Qf2 {[%clk 0:02:09]}  c4 {[%clk 0:01:37]} 20. bxc4 {[%clk 0:02:03]}  bxc4 {[%clk 0:01:35]} 21. Ba3 {[%clk 0:02:02]}  Be7 {[%clk 0:01:30]} 22. Qxa7 {[%clk 0:01:57]}  Bxe4 {[%clk 0:01:27]} 23. Bxe7 {[%clk 0:01:48]}  Ra8 {[%clk 0:01:19]} 24. Qc5 {[%clk 0:01:37]}  Ra5 {[%clk 0:01:05]} 25. Bxd8 {[%clk 0:01:24]}  Rxc5 {[%clk 0:01:04]} 26. Be7 {[%clk 0:01:17]}  Rxe5 {[%clk 0:00:24]} 27. Bxf8 {[%clk 0:01:14]}  cxd3 {[%clk 0:00:24]} 28. Bd6 {[%clk 0:01:06]}  Rd5 {[%clk 0:00:20]} 29. Nxe4 {[%clk 0:01:04]}  dxc2 {[%clk 0:00:20]} 30. Ba3 {[%clk 0:01:03]}  Rd1 {[%clk 0:00:17]} 31. Bc1 {[%clk 0:01:02]}  f5 {[%clk 0:00:13]} 32. Nc3 {[%clk 0:01:01]}  Rd3 {[%clk 0:00:11]} 33. Ne2 {[%clk 0:00:54]}  g5 {[%clk 0:00:10]} 34. a4 {[%clk 0:00:51]}  f4 {[%clk 0:00:07]} 35. a5 {[%clk 0:00:51]}  Rd5 {[%clk 0:00:07]} 36. a6 {[%clk 0:00:45]}  Ra5 {[%clk 0:00:06]} 37. Nd4 {[%clk 0:00:42]}  e5 {[%clk 0:00:06]} 38. Nxc2 {[%clk 0:00:40]}  Rxa6 {[%clk 0:00:06]} 39. Re1 {[%clk 0:00:39]}  Ra5 {[%clk 0:00:05]} 40. Nb4 {[%clk 0:00:37]}  Rb5 {[%clk 0:00:01]} 41. Nd3 {[%clk 0:00:34]} 1-0


[Site "https://www.chess.com"]